fUSD/lending_fUSD_20260217
["ID","MTS","AMOUNT","RATE_DAILY","PERIOD"]
[405856051,1771365039586,-200.0,0.0001,2]
[405856052,1771365039601,-151.0,0.0001,2]
[405856054,1771365039611,-151.0,0.0001,2]
[405856055,1771365039622,-151.0,0.0001,2]
[405856056,1771365039634,-151.0,0.0001,2]
[405856057,1771365039645,-151.0,0.0001,2]
[405856058,1771365039655,-151.0,0.0001,2]
[405856059,1771365039665,-11700.0,0.0001,3]
[405856060,1771365039679,-151.0,0.0001,2]
[405856061,1771365039689,-151.0,0.0001,2]
[405856062,1771365039700,-151.0,0.0001,2]
[405856063,1771365039711,-164.43370107,0.0001,2]
[405856064,1771365039722,-151.0,0.0001,2]
[405856065,1771365039733,-151.0,0.0001,2]
[405856066,1771365039743,-151.0,0.0001,2]
[405856067,1771365039755,-151.0,0.0001,2]
[405856068,1771365039765,-151.0,0.0001,2]
[405856069,1771365039776,-151.0,0.0001,2]
[405856070,1771365039786,-151.0,0.0001,2]
[405856071,1771365039797,-151.0,0.0001,2]
[405856072,1771365039807,-151.0,0.0001,2]
[405856073,1771365039818,-151.0,0.0001,2]
[405856074,1771365039828,-151.0,0.0001,2]
[405856075,1771365039838,-151.0,0.0001,2]
[405856076,1771365039848,-151.0,0.0001,2]
[405856077,1771365039858,-151.0,0.0001,2]
[405856078,1771365039869,-151.0,0.0001,2]
[405856079,1771365039879,-151.0,0.0001,2]
[405856080,1771365039888,-151.0,0.0001,2]
[405856081,1771365039900,-151.0,0.0001,2]
[405856082,1771365039910,-175.22048755,0.0001,2]
[405856083,1771365039921,-500.0,0.0001,2]
[405856084,1771365039930,-500.0,0.0001,2]
[405856085,1771365039940,-500.0,0.0001,2]
[405856086,1771365039951,-500.0,0.0001,2]
[405856087,1771365039965,-500.0,0.0001,2]
[405856088,1771365039976,-500.0,0.0001,2]
[405856089,1771365039986,-500.0,0.0001,2]
[405856090,1771365039996,-500.0,0.0001,2]
[405856091,1771365040006,-500.0,0.0001,2]
[405856092,1771365040017,-500.0,0.0001,2]
[405856093,1771365040027,-500.0,0.0001,2]
[405856094,1771365040038,-680.18917296,0.0001,2]
[405856095,1771365040049,-680.18917296,0.0001,2]
[405856096,1771365040059,-680.18917296,0.0001,2]
[405856097,1771365040070,-337.0,0.0001,2]
[405856098,1771365040080,-337.0,0.0001,2]
[405856100,1771365040090,-337.85061866,0.0001,2]
[405856102,1771365040100,-500.0,0.0001,2]
[405856104,1771365040111,-151.0,0.0001,2]
[405856105,1771365040121,-151.0,0.0001,2]
[405856106,1771365040131,-151.0,0.0001,2]
[405856107,1771365040141,-151.0,0.0001,2]
[405856109,1771365040151,-151.0,0.0001,2]
[405856111,1771365040162,-500.0,0.0001,2]
[405856113,1771365040172,-151.0,0.0001,2]
[405856115,1771365040182,-500.0,0.0001,2]
[405856117,1771365040192,-151.0,0.0001,2]
[405856119,1771365040202,-500.0,0.0001,2]
[405856120,1771365040212,-151.0,0.0001,2]
[405856121,1771365040223,-500.0,0.0001,2]
[405856122,1771365040233,-151.0,0.0001,2]
[405856123,1771365040243,-500.0,0.0001,2]
[405856124,1771365040254,-151.0,0.0001,2]
[405856125,1771365040264,-500.0,0.0001,2]
[405856126,1771365040274,-151.0,0.0001,2]
[405856127,1771365040284,-500.0,0.0001,2]
[405856128,1771365040294,-500.0,0.0001,2]
[405856129,1771365040304,-500.0,0.0001,2]
[405856130,1771365040318,-500.0,0.0001,2]
[405856131,1771365040330,-500.0,0.0001,2]
[405856132,1771365040341,-200.0,0.0001,2]
[405856133,1771365040352,-943.72114971,0.0001,2]
[405856134,1771365040363,-1454.86007664,0.0001,2]
[405856135,1771365040373,-1454.86007664,0.0001,2]
[405856136,1771365040383,-500.0,0.0001001,3]
[405856137,1771365040394,-500.0,0.0001001,3]
[405856138,1771365040404,-500.0,0.00010018,2]
[405856139,1771365040414,-214.0121963,0.00010018,2]
[405856140,1771365040425,-237.28842339,0.00010018,2]
[405856141,1771365040436,-512.26030593,0.00010029,3]
[405856142,1771365040446,-500.0,0.00010029,3]
[405856143,1771365040456,-500.0,0.00010055,2]
[405856144,1771365040466,-500.0,0.00010055,2]
[405856145,1771365040477,-500.0,0.00010064,3]
[405856146,1771365040488,-500.0,0.00010064,3]
[405856147,1771365040499,-500.0,0.00010073,2]
[405856148,1771365040509,-500.0,0.00010084,3]
[405856149,1771365040523,-500.0,0.0001011,2]
[405856150,1771365040534,-500.0,0.0001011,2]
[405856151,1771365040544,-500.0,0.00010119,3]
[405856152,1771365040554,-500.0,0.00010119,3]
[405856153,1771365040565,-500.0,0.00010128,2]
[405856154,1771365040575,-500.0,0.00010138,3]
[405856155,1771365040586,-500.0,0.00010148,2]
[405856156,1771365040596,-500.0,0.00010164,2]
[405856157,1771365040608,-205.81655615,0.00010164,2]
[405856158,1771365040618,-500.0,0.00010174,3]
[405856159,1771365040628,-500.0,0.00010174,3]
[405856160,1771365040639,-500.0,0.00010182,2]
[405856161,1771365040649,-284.61,0.0001019,2]
[405856162,1771365040659,-500.0,0.00010193,3]
[405856163,1771365040672,-758.0,0.00010194,2]
[405856164,1771365040683,-500.0,0.00010219,2]
[405856165,1771365040694,-393.71,0.00010223,2]
[405856166,1771365040704,-500.0,0.00010229,3]
[405856167,1771365040718,-500.0,0.00010229,3]
[405856168,1771365040729,-500.0,0.00010237,2]
[405856169,1771365040739,-500.0,0.00010248,3]
[405856170,1771365040751,-350.0,0.00010274,2]
[405856171,1771365040762,-500.0,0.00010284,3]
[405856172,1771365040772,-500.0,0.00010284,3]
[405856173,1771365040782,-500.0,0.00010292,2]
[405856174,1771365040793,-898.32890406,0.00010292,2]
[405856175,1771365040803,-500.0,0.00010303,3]
[405856176,1771365040814,-500.0,0.00010324,2]
[405856177,1771365040824,-500.0,0.00010324,2]
[405856178,1771365040835,-150.31509327,0.00010324,2]
[405856179,1771365040845,-500.0,0.00010324,2]
[405856180,1771365040855,-500.0,0.00010324,2]
[405856181,1771365040865,-596.0,0.00010324,2]
[405856182,1771365040876,-150.0,0.00010324,2]
[405856183,1771365040887,-500.0,0.00010324,2]
[405856184,1771365040897,-500.0,0.00010338,3]
[405856185,1771365040908,-500.0,0.00010338,3]
[405856186,1771365040918,-500.0,0.00010347,2]
[405856187,1771365040928,-500.0,0.00010358,3]
[405856188,1771365040939,-500.0,0.00010379,2]
[405856189,1771365040949,-500.0,0.00010379,2]
[405856190,1771365040959,-500.0,0.00010379,2]
[405856191,1771365040970,-500.0,0.00010379,2]
[405856192,1771365040979,-596.0,0.00010379,2]
[405856193,1771365040990,-150.0,0.00010379,2]
[405856194,1771365041000,-500.0,0.00010379,2]
[405856195,1771365041011,-500.0,0.00010393,3]
[405856196,1771365041020,-500.0,0.00010393,3]
[405856197,1771365041030,-500.0,0.00010402,2]
[405856198,1771365041041,-280.68179644,0.00010412,3]
[405856199,1771365041051,-500.0,0.00010422,2]
[405856200,1771365041061,-500.0,0.00010434,2]
[405856201,1771365041072,-500.0,0.00010434,2]
[405856202,1771365041082,-500.0,0.00010434,2]
[405856203,1771365041108,-616.5683879,0.00010434,2]
[405856204,1771365041119,-596.0,0.00010434,2]
[405856205,1771365041130,-201.09695119,0.00010434,2]
[405856206,1771365041141,-500.0,0.00010434,2]
[405856207,1771365041152,-500.0,0.00010448,3]
[405856208,1771365041163,-481.0942881,0.00010448,3]
[405856209,1771365041174,-500.0,0.00010456,2]
[405856210,1771365041185,-500.0,0.00010488,2]
[405856211,1771365041196,-500.0,0.00010488,2]
[405856212,1771365041206,-500.0,0.00010488,2]
[405856213,1771365041217,-596.0,0.00010488,2]
[405856214,1771365041228,-500.0,0.00010488,2]
[405856215,1771365041239,-500.0,0.00010503,3]
[405856216,1771365041249,-500.0,0.00010511,2]
[405856217,1771365041260,-500.0,0.00010543,2]
[405856218,1771365041271,-500.0,0.00010543,2]
[405856219,1771365041282,-500.0,0.00010543,2]
[405856220,1771365041293,-596.0,0.00010543,2]
[405856221,1771365041304,-500.0,0.00010543,2]
[405856222,1771365041315,-200.0,0.00010548,2]
[405856223,1771365041325,-500.0,0.00010548,2]
[405856224,1771365041336,-200.0,0.00010548,2]
[405856225,1771365041346,-514.37004621,0.00010558,3]
[405856226,1771365041357,-500.0,0.00010566,2]
[405856227,1771365041367,-500.0,0.00010598,2]
[405856228,1771365041378,-500.0,0.00010598,2]
[405856229,1771365041389,-500.0,0.00010598,2]
[405856230,1771365041399,-596.0,0.00010598,2]
[405856231,1771365041409,-500.33776257,0.00010598,2]
[405856232,1771365041419,-500.0,0.00010621,2]
[405856233,1771365041430,-500.0,0.00010653,2]
[405856234,1771365041445,-500.0,0.00010653,2]
[405856235,1771365041455,-500.0,0.00010653,2]
[405856236,1771365041466,-596.0,0.00010653,2]
[405856237,1771365041477,-224.65460803,0.00010676,2]
[405856238,1771365041488,-500.0,0.00010696,2]
[405856239,1771365041499,-500.0,0.00010708,2]
[405856240,1771365041510,-500.0,0.00010708,2]
[405856241,1771365041522,-500.0,0.00010708,2]
[405856242,1771365041533,-596.0,0.00010708,2]
[405856243,1771365041544,-1600.0,0.00010716,2]
[405856244,1771365041554,-393.71,0.00010761,2]
[405856245,1771365041565,-500.0,0.00010762,2]
[405856246,1771365041576,-500.0,0.00010762,2]
[405856247,1771365041587,-500.0,0.00010762,2]
[405856248,1771365041599,-596.0,0.00010762,2]
[405856249,1771365041609,-2351.0,0.00010785,2]
[405856250,1771365041620,-214297.0,0.000108,2]
[405856251,1771365041631,-500.0,0.00010817,2]
[405856252,1771365041642,-500.0,0.00010817,2]
[405856253,1771365041653,-500.0,0.00010817,2]
[405856254,1771365041664,-596.0,0.00010817,2]
[405856255,1771365041679,-500.0,0.00010872,2]
[405856256,1771365041690,-500.0,0.00010872,2]
[405856257,1771365041702,-500.0,0.00010872,2]
[405856258,1771365041712,-596.0,0.00010872,2]
[405856259,1771365041723,-5019.02576735,0.000109,2]
[405856260,1771365041734,-5019.02576734,0.000109,2]
[405856261,1771365041747,-433.0,0.00010906,2]
[405856262,1771365041758,-500.0,0.00010927,2]
[405856263,1771365041769,-361.9355564,0.00010927,2]
[405856264,1771365041780,-500.0,0.00010927,2]
[405856265,1771365041790,-596.0,0.00010927,2]
[405856266,1771365041800,-166.66,0.00010959,2]
[405856267,1771365041815,-151.0,0.00010959,4]
[405856268,1771365041826,-500.0,0.0001097,2]
[405856269,1771365041836,-500.0,0.00010982,2]
[405856270,1771365041847,-500.0,0.00010982,2]
[405856271,1771365041858,-596.0,0.00010982,2]
[405856272,1771365041868,-500.0,0.00011036,2]
[405856273,1771365041879,-498.26652801,0.00011036,2]
[405856274,1771365041890,-596.0,0.00011036,2]
[405856275,1771365041900,-166.66,0.00011068,2]
[405856276,1771365041911,-611.76249723,0.00011091,2]
[405856277,1771365041921,-596.0,0.00011091,2]
[405856278,1771365041931,-200.0,0.00011096,2]
[405856279,1771365041942,-500.0,0.00011096,2]
[405856280,1771365041953,-200.0,0.00011096,2]
[405856281,1771365041964,-13671.9263841,0.00011099,2]
[405856282,1771365041991,-251.27877156,0.00011099,2]
[405856283,1771365042024,-1274.14311857,0.00011099,2]
[405856284,1771365042118,-502.63517809,0.00011099,2]
[405856285,1771365042135,-315.041611,0.00011099,2]
[405856286,1771365042148,-335.38,0.00011099,2]
[405856287,1771365042169,-28953.70644634,0.00011099,2]
[405856288,1771365042181,-45304.11150959,0.00011099,2]
[405856289,1771365042192,-45304.11150959,0.00011099,2]
[405856290,1771365042202,-45304.11150959,0.00011099,2]
[405856291,1771365042213,-45304.11150959,0.00011099,2]
[405856292,1771365042224,-45304.11150959,0.00011099,2]
[405856293,1771365042234,-68837.47701458,0.00011099,2]
[405856294,1771365042245,-68837.47701454,0.00011099,2]
[405856295,1771365042256,-68837.47701454,0.00011099,2]
[405856296,1771365042267,-68837.47701454,0.00011099,2]
[405856299,1771365042278,-5530.0,0.000111,3]
[405856302,1771365042288,-450.0,0.00011145,7]
[405856304,1771365042298,-596.0,0.00011146,2]
[405856306,1771365042309,-166.66,0.00011178,2]
[405856308,1771365042319,-596.0,0.00011201,2]
[405856309,1771365042330,-13523.61,0.00011233,2]
[405856310,1771365042340,-500.0,0.00011244,2]
[405856311,1771365042351,-596.0,0.00011256,2]
[405856312,1771365042365,-68837.47701454,0.00011266,2]
[405856313,1771365042376,-166.66,0.00011288,2]
[405856314,1771365042387,-393.71,0.00011299,2]
[405856315,1771365042399,-596.0,0.0001131,2]
[405856316,1771365042410,-150.0,0.00011312,3]
[405856317,1771365042421,-500.0,0.00011312,3]
[405856318,1771365042432,-150.0,0.00011312,3]
[405856319,1771365042444,-500.0,0.00011312,3]
[405856320,1771365042455,-150.0,0.00011312,3]
[405856321,1771365042466,-500.0,0.00011312,3]
[405856322,1771365042477,-500.0,0.00011312,3]
[405856323,1771365042488,-150.0,0.00011312,3]
[405856324,1771365042500,-150.0,0.00011312,3]
[405856325,1771365042906,-150.0,0.00011312,3]
[405856326,1771365042917,-150.0,0.00011312,3]
[405856327,1771365042927,-500.0,0.00011312,3]
[405856328,1771365042937,-500.0,0.00011312,3]
[405856329,1771365042947,-150.0,0.00011312,3]
[405856330,1771365042956,-500.0,0.00011312,3]
[405856331,1771365042967,-1009.2,0.00011312,2]
[405856332,1771365042977,-596.0,0.00011365,2]
[405856333,1771365042986,-250.0,0.00011365,2]
[405856334,1771365042996,-500.0,0.00011367,3]
[405856335,1771365043006,-150.0,0.00011367,3]
[405856336,1771365043032,-242.84628954,0.00011367,3]
[405856337,1771365043043,-500.0,0.00011367,3]
[405856338,1771365043054,-150.0,0.00011367,3]
[405856339,1771365043064,-500.0,0.00011367,3]
[405856340,1771365043076,-500.0,0.00011367,3]
[405856341,1771365043087,-244.28993987,0.00011367,3]
[405856342,1771365043098,-150.0,0.00011367,3]
[405856343,1771365043108,-150.0,0.00011367,3]
[405856344,1771365043119,-150.0,0.00011367,3]
[405856345,1771365043130,-500.0,0.00011367,3]
[405856346,1771365043141,-649.65624143,0.00011367,3]
[405856347,1771365043151,-205.12968692,0.00011367,3]
[405856348,1771365043162,-500.0,0.00011367,3]
[405856349,1771365043174,-45304.11150959,0.00011385,2]
[405856350,1771365043184,-166.66,0.00011397,2]
[405856351,1771365043195,-596.0,0.0001142,2]
[405856352,1771365043206,-500.0,0.00011422,3]
[405856353,1771365043217,-500.0,0.00011422,3]
[405856354,1771365043227,-250.53819001,0.00011422,3]
[405856355,1771365043237,-150.0,0.00011422,3]
[405856356,1771365043247,-220.15883999,0.00011422,3]
[405856357,1771365043258,-152.12850518,0.00011422,3]
[405856358,1771365043268,-150.0,0.00011422,3]
[405856359,1771365043279,-200.18645604,0.00011422,3]
[405856360,1771365043289,-200.36674187,0.00011422,3]
[405856361,1771365043300,-500.0,0.00011422,3]
[405856362,1771365043310,-500.0,0.00011422,3]
[405856363,1771365043321,-596.0,0.00011475,2]
[405856364,1771365043331,-500.0,0.00011476,3]
[405856365,1771365043341,-500.0,0.00011476,3]
[405856366,1771365043351,-295.69274942,0.00011476,3]
[405856367,1771365043362,-200.89245722,0.00011476,3]
[405856368,1771365043373,-500.0,0.00011476,3]
[405856369,1771365043383,-500.0,0.00011476,3]
[405856370,1771365043393,-5530.0,0.000115,5]
[405856371,1771365043403,-166.66,0.00011507,2]
[405856372,1771365043414,-500.0,0.00011518,2]
[405856373,1771365043424,-596.0,0.00011529,2]
[405856374,1771365043434,-500.0,0.00011531,3]
[405856375,1771365043444,-500.0,0.00011531,3]
[405856376,1771365043455,-500.0,0.00011531,3]
[405856377,1771365043465,-500.0,0.00011531,3]
[405856378,1771365043476,-600.2655769,0.00011584,2]
[405856379,1771365043487,-500.0,0.00011586,3]
[405856380,1771365043497,-500.0,0.00011586,3]
[405856381,1771365043508,-500.0,0.00011586,3]
[405856382,1771365043519,-500.0,0.00011586,3]
[405856383,1771365043530,-1009.2,0.00011586,2]
[405856384,1771365043541,-428.27570222,0.00011599,2]
[405856385,1771365043552,-500.0,0.00011641,3]
[405856386,1771365043562,-500.0,0.00011641,3]
[405856387,1771365043573,-382.17209928,0.00011641,3]
[405856388,1771365043583,-630.25617345,0.00011641,3]
[405856389,1771365043594,-200.0,0.00011644,2]
[405856390,1771365043604,-500.0,0.00011644,2]
[405856392,1771365043614,-218.04759767,0.00011644,2]
[405856394,1771365043625,-500.0,0.00011696,3]
[405856396,1771365043636,-500.0,0.00011696,3]
[405856398,1771365043646,-68837.47701454,0.00011732,2]
[405856401,1771365043656,-500.0,0.0001175,3]
[405856402,1771365043667,-153.2248447,0.0001175,3]
[405856403,1771365043681,-500.0,0.00011792,2]
[405856404,1771365043691,-45304.11150959,0.00011797,2]
[405856405,1771365043702,-500.0,0.00011805,3]
[405856406,1771365043713,-393.71,0.00011837,2]
[405856407,1771365043726,-433.69347785,0.00011841,2]
[405856408,1771365043742,-150.0,0.00011841,2]
[405856409,1771365043753,-163.51122534,0.0001186,3]
[405856410,1771365043764,-1009.2,0.0001186,2]
[405856411,1771365043775,-3292.0,0.00011864,2]
[405856412,1771365043785,-5019.02576734,0.00011899,2]
[405856413,1771365043795,-1600.0,0.00011907,2]
[405856414,1771365043805,-736.0,0.00011997,2]
[405856415,1771365043815,-348.51,0.0001206,2]
[405856416,1771365043825,-500.0,0.00012066,2]
[405856417,1771365043836,-1009.2,0.00012134,2]
[405856419,1771365043846,-500.0,0.00012173,2]
[405856421,1771365043856,-164.61380668,0.00012173,2]
[405856422,1771365043865,-500.0,0.00012173,2]
[405856423,1771365043875,-500.0,0.00012173,2]
[405856424,1771365043885,-500.0,0.00012173,2]
[405856425,1771365043895,-500.0,0.00012173,2]
[405856426,1771365043911,-160.1837527,0.00012173,2]
[405856427,1771365043921,-545.77855618,0.00012173,2]
[405856428,1771365043933,-500.0,0.00012173,2]
[405856429,1771365043943,-500.0,0.00012173,2]
[405856430,1771365043954,-500.0,0.00012173,2]
[405856431,1771365043964,-500.0,0.00012173,2]
[405856432,1771365043975,-500.0,0.00012173,2]
[405856433,1771365043985,-500.0,0.00012173,2]
[405856434,1771365043995,-500.0,0.00012173,2]
[405856435,1771365044005,-500.0,0.00012173,2]
[405856436,1771365044015,-500.0,0.00012173,2]
[405856437,1771365044025,-500.0,0.00012173,2]
[405856438,1771365044035,-500.0,0.00012173,2]
[405856439,1771365044045,-500.0,0.00012173,2]
[405856440,1771365044055,-500.0,0.00012173,2]
[405856441,1771365044065,-500.0,0.00012173,2]
[405856442,1771365044075,-500.0,0.00012173,2]
[405856443,1771365044085,-500.0,0.00012173,2]
[405856444,1771365044095,-160.37289206,0.00012173,2]
[405856446,1771365044105,-500.0,0.00012173,2]
[405856447,1771365044115,-500.62727143,0.00012173,2]
[405856448,1771365044125,-500.0,0.00012173,2]
[405856449,1771365044135,-500.0,0.00012173,2]
[405856450,1771365044145,-500.0,0.00012173,2]
[405856451,1771365044156,-500.0,0.00012173,2]
[405856452,1771365044165,-500.46642231,0.00012173,2]
[405856453,1771365044175,-166.78412047,0.00012173,2]
[405856454,1771365044185,-500.0,0.00012173,2]
[405856455,1771365044195,-500.0,0.00012173,2]
[405856456,1771365044205,-500.0,0.00012173,2]
[405856457,1771365044215,-200.0,0.00012192,2]
[405856458,1771365044224,-500.0,0.00012192,2]
[405856459,1771365044235,-68837.47701454,0.00012199,2]
[405856460,1771365044244,-45304.11150959,0.00012209,2]
[405856461,1771365044254,-500.0,0.0001234,2]
[405856462,1771365044264,-172.29,0.0001236,2]
[405856463,1771365044273,-393.71,0.00012375,2]
[405856464,1771365044284,-1009.2,0.00012408,2]
[405856465,1771365044293,-500.0,0.00012614,2]
[405856466,1771365044303,-45304.11150959,0.00012621,2]
[405856467,1771365044314,-68837.47701454,0.00012665,2]
[405856468,1771365044324,-1009.2,0.00012682,2]
[405856469,1771365044334,-1000.0,0.00012721,2]
[405856470,1771365044344,-228.57891647,0.00012721,2]
[405856471,1771365044353,-1002.81524174,0.00012721,2]
[405856472,1771365044363,-571.65229745,0.00012721,2]
[405856473,1771365044374,-1013.94571317,0.00012721,2]
[405856474,1771365044384,-509.22256369,0.00012721,2]
[405856475,1771365044394,-500.0,0.00012721,2]
[405856476,1771365044404,-1000.0,0.00012721,2]
[405856477,1771365044413,-1000.0,0.00012721,2]
[405856478,1771365044424,-1000.0,0.00012721,2]
[405856479,1771365044433,-1000.0,0.00012721,2]
[405856480,1771365044443,-306.10762696,0.00012721,2]
[405856481,1771365044453,-1000.0,0.00012721,2]
[405856482,1771365044463,-544.40507509,0.00012721,2]
[405856483,1771365044473,-1000.0,0.00012721,2]
[405856484,1771365044483,-1000.0,0.00012721,2]
[405856485,1771365044493,-1000.0,0.00012721,2]
[405856486,1771365044503,-1000.0,0.00012721,2]
[405856487,1771365044513,-1000.0,0.00012721,2]
[405856488,1771365044523,-928.11420057,0.00012721,2]
[405856489,1771365044534,-1000.0,0.00012721,2]
[405856490,1771365044544,-1071.24633497,0.00012721,2]
[405856491,1771365044554,-1000.0,0.00012721,2]
[405856492,1771365044565,-1000.0,0.00012721,2]
[405856493,1771365044575,-615.3930462,0.00012721,2]
[405856494,1771365044585,-501.82748142,0.00012721,2]
[405856495,1771365044595,-1000.0,0.00012721,2]
[405856496,1771365044604,-200.0,0.0001274,2]
[405856497,1771365044614,-500.0,0.0001274,2]
[405856498,1771365044624,-284.61,0.0001283,2]
[405856499,1771365044634,-500.0,0.00012888,2]
[405856500,1771365044644,-393.71,0.00012913,2]
[405856501,1771365044655,-1009.2,0.00012956,2]
[405856502,1771365044665,-4609.0,0.0001305,2]
[405856503,1771365044680,-1600.0,0.00013098,2]
[405856504,1771365044690,-5019.02576734,0.00013099,2]
[405856505,1771365044700,-68837.47701454,0.00013132,2]
[405856506,1771365044711,-500.0,0.00013162,2]
[405856507,1771365044724,-1252.0,0.00013196,2]
[405856508,1771365044734,-189.72,0.00013197,2]
[405856509,1771365044745,-1009.2,0.0001323,2]
[405856510,1771365044755,-744.95097778,0.00013268,2]
[405856511,1771365044766,-1500.0,0.00013268,2]
[405856512,1771365044775,-1500.0,0.00013268,2]
[405856513,1771365044785,-1513.76878479,0.00013268,2]
[405856514,1771365044795,-1500.0,0.00013268,2]
[405856515,1771365044805,-1500.0,0.00013268,2]
[405856516,1771365044815,-623.71743587,0.00013268,2]
[405856517,1771365044825,-1500.0,0.00013268,2]
[405856518,1771365044835,-806.86059886,0.00013268,2]
[405856519,1771365044845,-616.56100589,0.00013268,2]
[405856520,1771365044855,-1500.0,0.00013268,2]
[405856521,1771365044866,-932.93855102,0.00013268,2]
[405856522,1771365044875,-1000.0,0.00013268,2]
[405856523,1771365044885,-1500.0,0.00013268,2]
[405856524,1771365044895,-1500.0,0.00013268,2]
[405856525,1771365044904,-200.0,0.00013288,2]
[405856526,1771365044914,-500.0,0.00013288,2]
[405856527,1771365044924,-173.57638878,0.00013303,2]
[405856528,1771365044934,-160.0,0.00013303,2]
[405856529,1771365044944,-943.7211497,0.00013393,2]
[405856530,1771365044955,-11813.90255413,0.00013407,2]
[405856531,1771365044966,-500.0,0.00013436,2]
[405856532,1771365044975,-393.71,0.00013451,2]
[405856533,1771365044985,-151.0,0.00013452,4]
[405856534,1771365044996,-348.51,0.00013499,2]
[405856535,1771365045006,-1009.2,0.00013504,2]
[405856536,1771365045017,-68837.47701454,0.00013598,2]
[405856537,1771365045027,-256.96542133,0.00013599,2]
[405856538,1771365045036,-500.0,0.00013698,2]
[405856539,1771365045046,-500.0,0.00013698,2]
[405856540,1771365045055,-500.0,0.00013698,2]
[405856541,1771365045065,-500.0,0.00013698,2]
[405856542,1771365045075,-500.0,0.00013698,2]
[405856543,1771365045084,-500.0,0.00013698,2]
[405856544,1771365045095,-500.0,0.00013698,2]
[405856545,1771365045104,-500.0,0.00013698,2]
[405856546,1771365045114,-500.0,0.00013698,2]
[405856547,1771365045124,-500.0,0.00013698,2]
[405856548,1771365045134,-500.0,0.00013698,2]
[405856549,1771365045144,-500.0,0.00013698,2]
[405856550,1771365045154,-500.0,0.00013698,2]
[405856551,1771365045163,-546.97,0.00013698,2]
[405856552,1771365045173,-500.0,0.00013698,2]
[405856553,1771365045183,-546.97,0.00013698,2]
[405856554,1771365045192,-500.0,0.00013698,2]
[405856555,1771365045202,-546.97,0.00013698,2]
[405856556,1771365045212,-500.0,0.00013698,2]
[405856557,1771365045222,-546.97,0.00013698,2]
[405856558,1771365045231,-500.0,0.00013698,2]
[405856559,1771365045241,-500.0,0.00013698,2]
[405856560,1771365045251,-546.97,0.00013698,2]
[405856561,1771365045261,-500.0,0.00013698,2]
[405856562,1771365045271,-546.97,0.00013698,2]
[405856563,1771365045281,-500.0,0.00013698,2]
[405856564,1771365045291,-546.97,0.00013698,2]
[405856565,1771365045301,-500.0,0.00013698,2]
[405856566,1771365045310,-546.97,0.00013698,2]
[405856567,1771365045321,-500.0,0.00013698,2]
[405856568,1771365045331,-546.97,0.00013698,2]
[405856569,1771365045341,-383.99953744,0.00013698,2]
[405856570,1771365045351,-546.97,0.00013698,2]
[405856571,1771365045362,-546.97,0.00013698,2]
[405856572,1771365045371,-546.97,0.00013698,2]
[405856573,1771365045381,-546.97,0.00013698,2]
[405856574,1771365045391,-546.97,0.00013698,2]
[405856575,1771365045503,-546.97,0.00013698,2]
[405856576,1771365045513,-546.97,0.00013698,2]